[Event "Early-Titled-Tuesday-Blitz-March-05-2024"]
[Site "Chess.com"]
[Date "2024.03.05"]
[Round "5"]
[White "Matols"]
[Black "BeardedNM"]
[Result "1-0"]
[WhiteElo "2398"]
[BlackElo "2208"]
[TimeControl "180+1"]
[EndTime "8:56:53 PST"]
[Termination "Matols won by checkmate"]

1. d4 {[%clk 0:03:00.9]} 1... e6 {[%clk 0:02:08.2]} 2. c4 {[%clk 0:03:00.9]}
2... Nf6 {[%clk 0:02:08.1]} 3. g3 {[%clk 0:03:01.1]} 3... d5 {[%clk 0:02:08.3]}
4. Nf3 {[%clk 0:03:00.7]} 4... Be7 {[%clk 0:02:08.7]} 5. Bg2 {[%clk 0:03:01.1]}
5... O-O {[%clk 0:02:09.4]} 6. O-O {[%clk 0:03:01.7]} 6... dxc4 {[%clk
0:02:10.1]} 7. Qc2 {[%clk 0:03:01.1]} 7... a6 {[%clk 0:02:10.6]} 8. a4 {[%clk
0:03:01.2]} 8... Bd7 {[%clk 0:02:11.2]} 9. Qxc4 {[%clk 0:03:01.4]} 9... Bc6
{[%clk 0:02:11.8]} 10. Bf4 {[%clk 0:03:01]} 10... a5 {[%clk 0:02:11.2]} 11. Nc3
{[%clk 0:02:59.1]} 11... Na6 {[%clk 0:02:11.5]} 12. Rad1 {[%clk 0:02:54.1]}
12... Nb4 {[%clk 0:02:08.6]} 13. Ne5 {[%clk 0:02:45.1]} 13... Bxg2 {[%clk
0:02:07.4]} 14. Kxg2 {[%clk 0:02:45.6]} 14... c6 {[%clk 0:02:01]} 15. e4 {[%clk
0:02:40.8]} 15... Rc8 {[%clk 0:01:50.8]} 16. Qe2 {[%clk 0:02:32.2]} 16... Nd7
{[%clk 0:01:43]} 17. Nc4 {[%clk 0:02:26.2]} 17... b5 {[%clk 0:01:03.5]} 18. Nd6
{[%clk 0:02:23.2]} 18... Bxd6 {[%clk 0:00:47]} 19. Bxd6 {[%clk 0:02:24.1]} 19...
Re8 {[%clk 0:00:39.6]} 20. axb5 {[%clk 0:02:16.1]} 20... Nb6 {[%clk 0:00:26.8]}
21. e5 {[%clk 0:02:07.4]} 21... cxb5 {[%clk 0:00:26.7]} 22. Qxb5 {[%clk
0:02:02.6]} 22... Nc4 {[%clk 0:00:20]} 23. Bxb4 {[%clk 0:01:56.2]} 23... axb4
{[%clk 0:00:20.9]} 24. Qxb4 {[%clk 0:01:56]} 24... Qc7 {[%clk 0:00:17.7]} 25.
Kg1 {[%clk 0:01:30.1]} 25... Rb8 {[%clk 0:00:17.1]} 26. Qc5 {[%clk 0:01:26]}
26... Qxc5 {[%clk 0:00:16.4]} 27. dxc5 {[%clk 0:01:26.9]} 27... Rxb2 {[%clk
0:00:16.6]} 28. Ne4 {[%clk 0:01:24.1]} 28... Nxe5 {[%clk 0:00:14.6]} 29. Rc1
{[%clk 0:01:17.8]} 29... Rc8 {[%clk 0:00:11.9]} 30. Rfd1 {[%clk 0:01:16.1]}
30... f5 {[%clk 0:00:11.6]} 31. Ng5 {[%clk 0:01:12.9]} 31... Rc6 {[%clk
0:00:11.7]} 32. Rd8# {[%clk 0:01:10.5]} 1-0

[Event "Early-Titled-Tuesday-Blitz-March-05-2024"]
[Site "Chess.com"]
[Date "2024.03.05"]
[Round "5"]
[White "DarZay"]
[Black "HajiyevKanan"]
[Result "1-0"]
[WhiteElo "2346"]
[BlackElo "2520"]
[TimeControl "180+1"]
[EndTime "8:56:55 PST"]
[Termination "DarZay won by resignation"]

1. e4 {[%clk 0:02:59]} 1... c6 {[%clk 0:02:55.3]} 2. d4 {[%clk 0:02:58.4]} 2...
d5 {[%clk 0:02:56.2]} 3. Nc3 {[%clk 0:02:58.5]} 3... a6 {[%clk 0:02:56]} 4. exd5
{[%clk 0:02:53]} 4... cxd5 {[%clk 0:02:56.9]} 5. Bd3 {[%clk 0:02:52.8]} 5... Nc6
{[%clk 0:02:56.7]} 6. Nf3 {[%clk 0:02:52.2]} 6... Bg4 {[%clk 0:02:57.1]} 7. Be3
{[%clk 0:02:48]} 7... e6 {[%clk 0:02:57.2]} 8. h3 {[%clk 0:02:47.8]} 8... Bh5
{[%clk 0:02:57]} 9. g4 {[%clk 0:02:47.8]} 9... Bg6 {[%clk 0:02:57.2]} 10. Bxg6
{[%clk 0:02:47.2]} 10... hxg6 {[%clk 0:02:58.1]} 11. Ne5 {[%clk 0:02:45.6]}
11... Bd6 {[%clk 0:02:53.3]} 12. f4 {[%clk 0:02:43.9]} 12... Nge7 {[%clk
0:02:38.1]} 13. a3 {[%clk 0:02:41.5]} 13... Qc7 {[%clk 0:02:38.2]} 14. Qd3
{[%clk 0:02:31.7]} 14... f6 {[%clk 0:02:02.1]} 15. Nxg6 {[%clk 0:02:28.8]} 15...
O-O-O {[%clk 0:01:54.8]} 16. Nxh8 {[%clk 0:02:26.4]} 16... Rxh8 {[%clk
0:01:53.6]} 17. O-O-O {[%clk 0:02:21.2]} 17... Bxf4 {[%clk 0:01:53.4]} 18. Bxf4
{[%clk 0:02:18.8]} 18... Qxf4+ {[%clk 0:01:54.3]} 19. Kb1 {[%clk 0:02:19]} 19...
b5 {[%clk 0:01:32.1]} 20. Ne2 {[%clk 0:02:12.4]} 20... Qd6 {[%clk 0:01:29.9]}
21. Ng3 {[%clk 0:02:06.7]} 21... Na5 {[%clk 0:00:59.3]} 22. Nh5 {[%clk
0:01:58.7]} 22... Rg8 {[%clk 0:00:58.3]} 23. Rhe1 {[%clk 0:01:30]} 23... Nc4
{[%clk 0:00:58.5]} 24. Qg3 {[%clk 0:01:20.9]} 24... Qb6 {[%clk 0:00:50]} 25. Nf4
{[%clk 0:01:09.4]} 25... b4 {[%clk 0:00:25.8]} 26. a4 {[%clk 0:01:08.3]} 26...
b3 {[%clk 0:00:09.9]} 27. Qxb3 {[%clk 0:01:04.9]} 1-0

[Event "Early-Titled-Tuesday-Blitz-March-05-2024"]
[Site "Chess.com"]
[Date "2024.03.05"]
[Round "5"]
[White "Susal_De_Silva"]
[Black "Mesa_1"]
[Result "1-0"]
[WhiteElo "2646"]
[BlackElo "2485"]
[TimeControl "180+1"]
[EndTime "8:56:56 PST"]
[Termination "Susal_De_Silva won by checkmate"]

1. Nf3 {[%clk 0:03:00.9]} 1... g6 {[%clk 0:02:57.1]} 2. g3 {[%clk 0:02:58.2]}
2... Bg7 {[%clk 0:02:57.6]} 3. Bg2 {[%clk 0:02:58.9]} 3... e5 {[%clk 0:02:58]}
4. d3 {[%clk 0:02:58.1]} 4... d5 {[%clk 0:02:58.3]} 5. O-O {[%clk 0:02:58.5]}
5... Nc6 {[%clk 0:02:58.1]} 6. Nbd2 {[%clk 0:02:58.5]} 6... Nge7 {[%clk
0:02:51.6]} 7. c4 {[%clk 0:02:56.1]} 7... d4 {[%clk 0:02:46.4]} 8. Rb1 {[%clk
0:02:53]} 8... a5 {[%clk 0:02:45.5]} 9. b3 {[%clk 0:02:52.4]} 9... O-O {[%clk
0:02:44.1]} 10. a3 {[%clk 0:02:51.6]} 10... Rb8 {[%clk 0:02:31.6]} 11. b4 {[%clk
0:02:50]} 11... axb4 {[%clk 0:02:32.5]} 12. axb4 {[%clk 0:02:50.9]} 12... b5
{[%clk 0:02:33.1]} 13. Ba3 {[%clk 0:02:38.2]} 13... bxc4 {[%clk 0:01:51]} 14.
Nxc4 {[%clk 0:02:27.6]} 14... Nd5 {[%clk 0:01:48.7]} 15. b5 {[%clk 0:02:27.8]}
15... Nc3 {[%clk 0:01:48]} 16. Qc2 {[%clk 0:02:27.2]} 16... Nxb1 {[%clk
0:01:35.1]} 17. Bxf8 {[%clk 0:02:25.4]} 17... Qxf8 {[%clk 0:01:32.4]} 18. Rxb1
{[%clk 0:02:23.2]} 18... Nb4 {[%clk 0:01:28.3]} 19. Qa4 {[%clk 0:01:55.2]} 19...
Nd5 {[%clk 0:01:24.1]} 20. Qa7 {[%clk 0:01:54]} 20... Rb7 {[%clk 0:01:15.5]} 21.
Qa8 {[%clk 0:01:54]} 21... Nc3 {[%clk 0:01:14.1]} 22. Nfxe5 {[%clk 0:01:48.9]}
22... Nxb1 {[%clk 0:01:04.3]} 23. Bxb7 {[%clk 0:01:47.4]} 23... Bxb7 {[%clk
0:01:04.7]} 24. Qxb7 {[%clk 0:01:47.3]} 24... Nc3 {[%clk 0:01:05.4]} 25. Qxc7
{[%clk 0:01:33.7]} 25... Nxb5 {[%clk 0:00:53.1]} 26. Qd7 {[%clk 0:01:32.4]}
26... Nc3 {[%clk 0:00:51.6]} 27. Kf1 {[%clk 0:01:28.7]} 27... h6 {[%clk
0:00:35.7]} 28. Nc6 {[%clk 0:01:26]} 28... Qa8 {[%clk 0:00:24.5]} 29. Nd6 {[%clk
0:01:19.7]} 29... Qa1+ {[%clk 0:00:19.3]} 30. Kg2 {[%clk 0:01:18.4]} 30... Qa2
{[%clk 0:00:19]} 31. Ne7+ {[%clk 0:01:13.6]} 31... Kh7 {[%clk 0:00:18.1]} 32.
Qe8 {[%clk 0:01:12.2]} 32... Qxe2 {[%clk 0:00:17.6]} 33. Qg8# {[%clk 0:01:11]}
1-0

[Event "Early-Titled-Tuesday-Blitz-March-05-2024"]
[Site "Chess.com"]
[Date "2024.03.05"]
[Round "5"]
[White "Blitzstream"]
[Black "wadsy27"]
[Result "1-0"]
[WhiteElo "2811"]
[BlackElo "2614"]
[TimeControl "180+1"]
[EndTime "8:57:00 PST"]
[Termination "Blitzstream won by resignation"]

1. e4 {[%clk 0:03:00.9]} 1... e6 {[%clk 0:02:58.9]} 2. c4 {[%clk 0:02:59.5]}
2... d5 {[%clk 0:02:58.9]} 3. cxd5 {[%clk 0:02:59.6]} 3... exd5 {[%clk
0:02:59.4]} 4. exd5 {[%clk 0:03:00.5]} 4... Nf6 {[%clk 0:02:59.2]} 5. Nc3 {[%clk
0:03:01.4]} 5... Nxd5 {[%clk 0:02:57.2]} 6. Nf3 {[%clk 0:03:01.9]} 6... Be7
{[%clk 0:02:54.6]} 7. Bc4 {[%clk 0:03:01.9]} 7... c6 {[%clk 0:02:54.6]} 8. O-O
{[%clk 0:03:01.4]} 8... O-O {[%clk 0:02:54.6]} 9. d4 {[%clk 0:03:01.8]} 9... Bg4
{[%clk 0:02:53.3]} 10. h3 {[%clk 0:03:02.1]} 10... Bh5 {[%clk 0:02:53.3]} 11. g4
{[%clk 0:03:02.3]} 11... Bg6 {[%clk 0:02:53.4]} 12. Ne5 {[%clk 0:03:02.8]} 12...
Nd7 {[%clk 0:02:43.7]} 13. Nxd5 {[%clk 0:02:51.5]} 13... cxd5 {[%clk 0:02:42.6]}
14. Bxd5 {[%clk 0:02:47.9]} 14... Nxe5 {[%clk 0:02:42.1]} 15. dxe5 {[%clk
0:02:48]} 15... Qb6 {[%clk 0:02:34.5]} 16. Qb3 {[%clk 0:02:43.4]} 16... Qd4
{[%clk 0:02:13.7]} 17. Re1 {[%clk 0:02:21.4]} 17... Rfd8 {[%clk 0:02:01.9]} 18.
Bg2 {[%clk 0:01:34.6]} 18... Qd3 {[%clk 0:00:28.2]} 19. Qxd3 {[%clk 0:01:21.1]}
19... Rxd3 {[%clk 0:00:27.4]} 20. Be3 {[%clk 0:01:22]} 20... Rc8 {[%clk
0:00:20.6]} 21. Rac1 {[%clk 0:01:18.7]} 21... Rxc1 {[%clk 0:00:20.1]} 22. Rxc1
{[%clk 0:01:19.6]} 22... b6 {[%clk 0:00:20.4]} 23. Rc8+ {[%clk 0:01:14.4]} 23...
Bd8 {[%clk 0:00:18.1]} 24. Bg5 {[%clk 0:00:55.7]} 24... f6 {[%clk 0:00:18]} 25.
exf6 {[%clk 0:00:56.2]} 25... Kf7 {[%clk 0:00:18.6]} 26. fxg7 {[%clk 0:00:54.5]}
26... Rd1+ {[%clk 0:00:15.2]} 27. Kh2 {[%clk 0:00:45.3]} 1-0

[Event "Early-Titled-Tuesday-Blitz-March-05-2024"]
[Site "Chess.com"]
[Date "2024.03.05"]
[Round "5"]
[White "subham777"]
[Black "Abund"]
[Result "0-1"]
[WhiteElo "2544"]
[BlackElo "2757"]
[TimeControl "180+1"]
[EndTime "8:57:00 PST"]
[Termination "Abund won by resignation"]

1. e4 {[%clk 0:03:00.9]} 1... c6 {[%clk 0:02:50.5]} 2. c4 {[%clk 0:03:00]} 2...
d5 {[%clk 0:02:42.2]} 3. cxd5 {[%clk 0:03:00.9]} 3... cxd5 {[%clk 0:02:43.1]} 4.
exd5 {[%clk 0:03:01.8]} 4... Nf6 {[%clk 0:02:43.3]} 5. Nc3 {[%clk 0:03:01.7]}
5... Nxd5 {[%clk 0:02:42.9]} 6. Nf3 {[%clk 0:03:01.6]} 6... Nc6 {[%clk
0:02:42.6]} 7. Bc4 {[%clk 0:03:00.3]} 7... Nb6 {[%clk 0:02:38.8]} 8. Bb3 {[%clk
0:03:00.2]} 8... g6 {[%clk 0:02:37.5]} 9. d4 {[%clk 0:02:59.9]} 9... Bg7 {[%clk
0:02:35.6]} 10. O-O {[%clk 0:03:00.1]} 10... O-O {[%clk 0:02:34.9]} 11. Be3
{[%clk 0:03:00.6]} 11... Nb4 {[%clk 0:02:28.3]} 12. a3 {[%clk 0:02:40.5]} 12...
N4d5 {[%clk 0:02:28]} 13. Nxd5 {[%clk 0:02:39.3]} 13... Nxd5 {[%clk 0:02:28.2]}
14. Re1 {[%clk 0:02:34.9]} 14... Nxe3 {[%clk 0:02:13.4]} 15. Rxe3 {[%clk
0:02:28.7]} 15... e6 {[%clk 0:02:05.1]} 16. Ne5 {[%clk 0:02:23.6]} 16... Qd6
{[%clk 0:02:05]} 17. Nc4 {[%clk 0:02:17.6]} 17... Qd8 {[%clk 0:02:00.5]} 18. Rd3
{[%clk 0:02:13]} 18... b5 {[%clk 0:01:50.1]} 19. Ne5 {[%clk 0:02:08.6]} 19...
Bb7 {[%clk 0:01:50.2]} 20. Rc1 {[%clk 0:01:56.4]} 20... Bxe5 {[%clk 0:01:38.1]}
21. dxe5 {[%clk 0:01:51.9]} 21... Qg5 {[%clk 0:01:38.6]} 22. Rg3 {[%clk
0:01:28.2]} 22... Qxe5 {[%clk 0:01:38.5]} 23. Qd7 {[%clk 0:01:14.3]} 23... Rac8
{[%clk 0:00:59.7]} 24. Rd1 {[%clk 0:00:49.9]} 24... Rcd8 {[%clk 0:00:42.2]} 25.
Qxd8 {[%clk 0:00:47.1]} 25... Rxd8 {[%clk 0:00:43.1]} 26. Rxd8+ {[%clk
0:00:45.7]} 26... Kg7 {[%clk 0:00:43.6]} 27. Re3 {[%clk 0:00:33.4]} 27... Qg5
{[%clk 0:00:39.6]} 0-1

[Event "Early-Titled-Tuesday-Blitz-March-05-2024"]
[Site "Chess.com"]
[Date "2024.03.05"]
[Round "5"]
[White "ansko1999"]
[Black "LiadCuba"]
[Result "1-0"]
[WhiteElo "2723"]
[BlackElo "2511"]
[TimeControl "180+1"]
[EndTime "8:57:01 PST"]
[Termination "ansko1999 won on time"]

1. Nf3 {[%clk 0:03:00.9]} 1... Nf6 {[%clk 0:02:55.8]} 2. c4 {[%clk 0:03:00.9]}
2... e6 {[%clk 0:02:55.4]} 3. g3 {[%clk 0:02:59.7]} 3... d5 {[%clk 0:02:55.9]}
4. Bg2 {[%clk 0:02:59.9]} 4... c5 {[%clk 0:02:55.9]} 5. cxd5 {[%clk 0:02:56.7]}
5... exd5 {[%clk 0:02:55.8]} 6. d4 {[%clk 0:02:55.4]} 6... Nc6 {[%clk
0:02:54.8]} 7. O-O {[%clk 0:02:55.2]} 7... a6 {[%clk 0:02:54]} 8. Re1 {[%clk
0:02:50.8]} 8... Be6 {[%clk 0:02:50.8]} 9. Nc3 {[%clk 0:02:48.4]} 9... Rc8
{[%clk 0:02:39.1]} 10. Bg5 {[%clk 0:02:42.5]} 10... cxd4 {[%clk 0:02:33.4]} 11.
Nxd4 {[%clk 0:02:42]} 11... Nxd4 {[%clk 0:02:33.3]} 12. Qxd4 {[%clk 0:02:41.6]}
12... Bc5 {[%clk 0:02:33.9]} 13. Qh4 {[%clk 0:02:30.2]} 13... Qb6 {[%clk
0:01:37.8]} 14. Bxf6 {[%clk 0:01:56.5]} 14... Bxf2+ {[%clk 0:01:36.9]} 15. Kh1
{[%clk 0:01:57.1]} 15... Bxe1 {[%clk 0:01:32.4]} 16. Bxg7 {[%clk 0:01:51.4]}
16... Bxc3 {[%clk 0:01:11.2]} 17. bxc3 {[%clk 0:01:48.6]} 17... Rg8 {[%clk
0:00:45.1]} 18. Qxh7 {[%clk 0:01:48.2]} 18... Kd7 {[%clk 0:00:44.3]} 19. Rd1
{[%clk 0:01:35.9]} 19... Qb5 {[%clk 0:00:22.6]} 20. Bf3 {[%clk 0:01:25.7]} 20...
Rce8 {[%clk 0:00:03.5]} 21. Kg2 {[%clk 0:01:19.4]} 21... Kc8 {[%clk 0:00:03.4]}
22. Bd4 {[%clk 0:01:08.6]} 22... Kb8 {[%clk 0:00:02.2]} 23. Rb1 {[%clk
0:01:06.4]} 23... Qc6 {[%clk 0:00:01.2]} 24. Rb6 {[%clk 0:01:02.2]} 24... Bg4
{[%clk 0:00:01.6]} 25. Rxc6 {[%clk 0:00:59.5]} 25... bxc6 {[%clk 0:00:02.1]} 26.
Qxf7 {[%clk 0:00:56]} 1-0

[Event "Early-Titled-Tuesday-Blitz-March-05-2024"]
[Site "Chess.com"]
[Date "2024.03.05"]
[Round "5"]
[White "Smoking_Crow"]
[Black "LiamPutnam2008"]
[Result "1-0"]
[WhiteElo "2622"]
[BlackElo "2889"]
[TimeControl "180+1"]
[EndTime "8:57:04 PST"]
[Termination "Smoking_Crow won by checkmate"]

1. d4 {[%clk 0:02:59.2]} 1... Nf6 {[%clk 0:02:58.3]} 2. c4 {[%clk 0:02:58.2]}
2... e6 {[%clk 0:02:57.5]} 3. Nc3 {[%clk 0:02:56.1]} 3... Bb4 {[%clk 0:02:57.3]}
4. a3 {[%clk 0:02:51.5]} 4... Bxc3+ {[%clk 0:02:57.4]} 5. bxc3 {[%clk
0:02:52.4]} 5... O-O {[%clk 0:02:53.4]} 6. f3 {[%clk 0:02:46.8]} 6... c5 {[%clk
0:02:50.4]} 7. e4 {[%clk 0:02:42.9]} 7... d6 {[%clk 0:02:47.3]} 8. Bd3 {[%clk
0:02:31.1]} 8... Nc6 {[%clk 0:02:43.2]} 9. Ne2 {[%clk 0:02:27.3]} 9... b6 {[%clk
0:02:37.6]} 10. O-O {[%clk 0:02:26.2]} 10... e5 {[%clk 0:02:34.5]} 11. d5 {[%clk
0:02:22.7]} 11... Na5 {[%clk 0:02:34.5]} 12. Bg5 {[%clk 0:02:20.6]} 12... h6
{[%clk 0:02:34.1]} 13. Bh4 {[%clk 0:02:18.8]} 13... Ba6 {[%clk 0:02:34.1]} 14.
f4 {[%clk 0:02:17.3]} 14... exf4 {[%clk 0:02:16.6]} 15. Nxf4 {[%clk 0:02:11.4]}
15... g5 {[%clk 0:02:16.7]} 16. Nh5 {[%clk 0:02:09.6]} 16... Nxh5 {[%clk
0:01:42.2]} 17. Qxh5 {[%clk 0:02:08.1]} 17... Kg7 {[%clk 0:01:42.9]} 18. e5
{[%clk 0:02:01.2]} 18... Bxc4 {[%clk 0:01:12.3]} 19. Rf6 {[%clk 0:01:47]} 19...
Bxd3 {[%clk 0:00:53.7]} 20. Qxh6+ {[%clk 0:01:44.8]} 20... Kg8 {[%clk
0:00:53.8]} 21. Qxg5+ {[%clk 0:01:44.1]} 21... Bg6 {[%clk 0:00:53.9]} 22. Rxg6+
{[%clk 0:01:43.7]} 22... fxg6 {[%clk 0:00:51.9]} 23. Qxg6+ {[%clk 0:01:44.3]}
23... Kh8 {[%clk 0:00:52.6]} 24. Bxd8 {[%clk 0:01:43.1]} 24... Raxd8 {[%clk
0:00:53.5]} 25. e6 {[%clk 0:01:38.7]} 25... Rde8 {[%clk 0:00:52.5]} 26. Rd1
{[%clk 0:01:36.8]} 26... Re7 {[%clk 0:00:47.7]} 27. Rd3 {[%clk 0:01:30.3]} 27...
Rg7 {[%clk 0:00:47.7]} 28. Qh6+ {[%clk 0:01:24.2]} 28... Kg8 {[%clk 0:00:47.8]}
29. Rg3 {[%clk 0:01:17.7]} 29... Rxg3 {[%clk 0:00:45.1]} 30. hxg3 {[%clk
0:01:18.5]} 30... Nc4 {[%clk 0:00:40.9]} 31. Qg6+ {[%clk 0:01:16.8]} 31... Kh8
{[%clk 0:00:41.5]} 32. e7 {[%clk 0:01:17.1]} 32... Ra8 {[%clk 0:00:42]} 33.
e8=Q+ {[%clk 0:01:15.7]} 33... Rxe8 {[%clk 0:00:42.6]} 34. Qxe8+ {[%clk
0:01:16.6]} 34... Kg7 {[%clk 0:00:43.5]} 35. Qe7+ {[%clk 0:01:15.2]} 35... Kg6
{[%clk 0:00:43.6]} 36. Qe4+ {[%clk 0:01:15.2]} 36... Kf6 {[%clk 0:00:43.7]} 37.
Qxc4 {[%clk 0:01:15.9]} 37... Ke5 {[%clk 0:00:44.2]} 38. g4 {[%clk 0:01:15.6]}
38... a6 {[%clk 0:00:44.3]} 39. g5 {[%clk 0:01:12.4]} 39... b5 {[%clk
0:00:42.3]} 40. Qe2+ {[%clk 0:01:11.5]} 40... Kxd5 {[%clk 0:00:42.9]} 41. g6
{[%clk 0:01:10.8]} 41... b4 {[%clk 0:00:43.6]} 42. g7 {[%clk 0:01:11.7]} 42...
bxc3 {[%clk 0:00:43.8]} 43. g8=Q+ {[%clk 0:01:12.2]} 43... Kc6 {[%clk
0:00:44.7]} 44. Qc8+ {[%clk 0:01:11.4]} 44... Kd5 {[%clk 0:00:44.3]} 45. Qd3+
{[%clk 0:01:11.6]} 45... Ke5 {[%clk 0:00:44.3]} 46. Qe8+ {[%clk 0:01:12.2]}
46... Kf6 {[%clk 0:00:44.4]} 47. Qf3+ {[%clk 0:01:12.5]} 47... Kg5 {[%clk
0:00:44.6]} 48. Qg8+ {[%clk 0:01:12.4]} 48... Kh6 {[%clk 0:00:44.6]} 49. Qh3#
{[%clk 0:01:13.3]} 1-0

[Event "Early-Titled-Tuesday-Blitz-March-05-2024"]
[Site "Chess.com"]
[Date "2024.03.05"]
[Round "5"]
[White "Quattroporte300"]
[Black "HanSchut"]
[Result "0-1"]
[WhiteElo "2445"]
[BlackElo "2314"]
[TimeControl "180+1"]
[EndTime "8:57:05 PST"]
[Termination "HanSchut won by resignation"]

1. e4 {[%clk 0:03:00.9]} 1... c5 {[%clk 0:02:56.6]} 2. Nf3 {[%clk 0:03:00.2]}
2... d6 {[%clk 0:02:57]} 3. d4 {[%clk 0:03:00.4]} 3... cxd4 {[%clk 0:02:57.9]}
4. Nxd4 {[%clk 0:03:00.9]} 4... Nf6 {[%clk 0:02:58.5]} 5. Nc3 {[%clk 0:03:01.5]}
5... a6 {[%clk 0:02:59.1]} 6. Bg5 {[%clk 0:03:00.9]} 6... e6 {[%clk 0:02:59.6]}
7. Qd2 {[%clk 0:03:01.1]} 7... Be7 {[%clk 0:02:59.2]} 8. f4 {[%clk 0:03:00.9]}
8... h6 {[%clk 0:02:57.7]} 9. Bh4 {[%clk 0:03:00.1]} 9... Nxe4 {[%clk
0:02:54.1]} 10. Bxe7 {[%clk 0:02:41.6]} 10... Nxd2 {[%clk 0:02:52.8]} 11. Bxd8
{[%clk 0:02:40.9]} 11... Nxf1 {[%clk 0:02:50]} 12. Bb6 {[%clk 0:02:27.6]} 12...
Ne3 {[%clk 0:02:44.6]} 13. Nxe6 {[%clk 0:02:24.5]} 13... Nxg2+ {[%clk
0:02:38.3]} 14. Kf2 {[%clk 0:02:24]} 14... fxe6 {[%clk 0:02:31.8]} 15. Kxg2
{[%clk 0:02:24]} 15... O-O {[%clk 0:02:31.8]} 16. Rhf1 {[%clk 0:02:14]} 16...
Nd7 {[%clk 0:02:23.5]} 17. Bc7 {[%clk 0:02:09.3]} 17... d5 {[%clk 0:02:20.4]}
18. Rae1 {[%clk 0:02:08.7]} 18... Nf6 {[%clk 0:02:08]} 19. Na4 {[%clk
0:01:59.9]} 19... Bd7 {[%clk 0:01:43.6]} 20. Nb6 {[%clk 0:01:59]} 20... Rae8
{[%clk 0:01:38]} 21. Nxd7 {[%clk 0:01:42.6]} 21... Nxd7 {[%clk 0:01:38.9]} 22.
c3 {[%clk 0:01:38.8]} 22... Rf5 {[%clk 0:01:35]} 23. Re2 {[%clk 0:01:34.9]}
23... Nc5 {[%clk 0:01:32.4]} 24. Rfe1 {[%clk 0:01:16.9]} 24... Ne4 {[%clk
0:01:32]} 25. h4 {[%clk 0:01:08.3]} 25... Re7 {[%clk 0:01:28.7]} 26. Be5 {[%clk
0:01:07.1]} 26... g5 {[%clk 0:01:25.1]} 27. Kh3 {[%clk 0:01:02.8]} 27... gxf4
{[%clk 0:01:20.8]} 28. Rg2+ {[%clk 0:00:59.8]} 28... Kf8 {[%clk 0:01:18.9]} 29.
Rxe4 {[%clk 0:00:48.1]} 29... dxe4 {[%clk 0:01:19.8]} 30. Bd6 {[%clk 0:00:48]}
30... e3 {[%clk 0:01:10.8]} 31. Re2 {[%clk 0:00:19.2]} 31... f3 {[%clk
0:00:49.4]} 32. Rxe3 {[%clk 0:00:15.9]} 32... f2 {[%clk 0:00:49.8]} 0-1

[Event "Early-Titled-Tuesday-Blitz-March-05-2024"]
[Site "Chess.com"]
[Date "2024.03.05"]
[Round "5"]
[White "diamonds13"]
[Black "RogelioOscarSanchezB"]
[Result "1-0"]
[WhiteElo "2348"]
[BlackElo "2016"]
[TimeControl "180+1"]
[EndTime "8:57:05 PST"]
[Termination "diamonds13 won on time"]

1. d4 {[%clk 0:02:54.3]} 1... Nf6 {[%clk 0:02:59.3]} 2. c4 {[%clk 0:02:53.9]}
2... g6 {[%clk 0:02:58.3]} 3. Nc3 {[%clk 0:02:54.1]} 3... Bg7 {[%clk 0:02:58.5]}
4. e4 {[%clk 0:02:54.3]} 4... O-O {[%clk 0:02:58.6]} 5. Be2 {[%clk 0:02:54]}
5... d6 {[%clk 0:02:58.5]} 6. Bg5 {[%clk 0:02:53.9]} 6... h6 {[%clk 0:02:53.5]}
7. Bh4 {[%clk 0:02:53]} 7... Nc6 {[%clk 0:02:49.4]} 8. d5 {[%clk 0:02:50.6]}
8... Ne5 {[%clk 0:02:45.2]} 9. h3 {[%clk 0:02:50.9]} 9... g5 {[%clk 0:02:30.6]}
10. Bg3 {[%clk 0:02:48]} 10... a6 {[%clk 0:02:13.5]} 11. h4 {[%clk 0:02:44.8]}
11... b5 {[%clk 0:02:08.6]} 12. hxg5 {[%clk 0:02:41.6]} 12... hxg5 {[%clk
0:02:06.8]} 13. f4 {[%clk 0:02:38.4]} 13... gxf4 {[%clk 0:02:00.3]} 14. Bxf4
{[%clk 0:02:38.3]} 14... Nxc4 {[%clk 0:01:59.8]} 15. Bxc4 {[%clk 0:02:36.1]}
15... bxc4 {[%clk 0:01:59.7]} 16. Nf3 {[%clk 0:02:27.7]} 16... Bg4 {[%clk
0:01:58]} 17. Qd2 {[%clk 0:02:26.6]} 17... e5 {[%clk 0:01:37.7]} 18. Bh6 {[%clk
0:02:25.8]} 18... Nh5 {[%clk 0:01:03.6]} 19. Bg5 {[%clk 0:01:53.4]} 19... f6
{[%clk 0:00:58.1]} 20. Be3 {[%clk 0:01:50.9]} 20... Rb8 {[%clk 0:00:46.4]} 21.
Nh4 {[%clk 0:01:50.3]} 21... Kf7 {[%clk 0:00:29.8]} 22. Nf5 {[%clk 0:01:48.4]}
22... Rh8 {[%clk 0:00:21.4]} 23. Qf2 {[%clk 0:01:37.3]} 23... Nf4 {[%clk
0:00:16.9]} 24. O-O {[%clk 0:01:21.2]} 24... Bxf5 {[%clk 0:00:13.7]} 25. Bxf4
{[%clk 0:01:20.1]} 25... exf4 {[%clk 0:00:06.4]} 26. exf5 {[%clk 0:01:20]} 26...
Bh6 {[%clk 0:00:03.5]} 27. Qf3 {[%clk 0:01:19.3]} 27... Qe7 {[%clk 0:00:02.7]}
28. Rae1 {[%clk 0:01:17.1]} 28... Qd7 {[%clk 0:00:02.7]} 29. Re6 {[%clk
0:01:14.4]} 29... Bg5 {[%clk 0:00:02.3]} 30. Rfe1 {[%clk 0:01:13.5]} 30... Rxb2
{[%clk 0:00:01.1]} 31. Ne4 {[%clk 0:01:07.2]} 1-0